{"text_format":"1","workbook":"xlsx","n_sheets":7,"sheets":["Accueil","Codes","Base recensement","Demande invest.","Demandes Achats","détail projet application","liens entre les formulaires"],"not_rendered":{"charts":0,"images":3,"macros":1,"external_links":0,"defined_names":8,"comments":1,"pivot_tables":0},"unopened":[],"bounds":{"document_bytes":16777216,"sheet_cells":100000,"rows_first":2000,"rows_last":500,"rows_between":2000,"halvings":0,"cell_chars":16384,"cell_head_chars":4096},"cells_cut":0,"cells_raw":0,"read":"whole","date_system":"1900"}

{"sheet":"Accueil","index":0,"n_rows":25,"n_cols":12,"rows_kept":25,"cut":false,"hidden":false,"merged":[[5,11,6,12],[5,3,6,4],[24,7,25,8]]}
[]
[]
[]
[]
[]
[null,null,null,"Demandeur",null,null,null,null,null,null,null,"Valideur"]
[]
[]
[]
[]
[]
[]
[]
[]
[]
[]
[]
[]
[]
[]
[]
[]
[]
[]
[null,null,null,null,null,null,null,"CDG"]

{"sheet":"Codes","index":1,"n_rows":9,"n_cols":7,"rows_kept":9,"cut":false,"hidden":false,"merged":[]}
["AnnéeCrédit","Tranche","Type","Catégorie","Sce demandeur","Responsable","Priorité"]
["C15",1,"N","E","CIAL","ALAIN","H"]
["C16",2,"S","G","DAF","HENRI","M"]
["C17",null,null,"S","DRH","PHILIPPE","L"]
[null,null,null,"R","DTE","DANIEL"]
[null,null,null,null,"HSE","NICOLAS"]
[null,null,null,null,"PRO","ENZO"]
[null,null,null,null,"QUA","QUENTIN"]
[null,null,null,null,"SCH","MARTIN"]

{"sheet":"Base recensement","index":2,"n_rows":15,"n_cols":39,"rows_kept":15,"cut":false,"hidden":false,"merged":[[0,20,0,21],[0,18,0,19],[0,22,0,35],[0,36,0,38]]}
["Données calculées ",null,null,null,null,null,null,null,null,null,null,{"$f":"SUMIF($AK$3:$AK$9970,\"=oui\",$L$3:$L$9970)","v":226},null,null,null,null,null,null,2015,null,2016,null,"Retour sur investissement",null,null,null,null,null,null,null,null,null,null,null,null,null,"Validation des besoins"]
["Référence","Numéro de la demande par service","AnnéeCrédit","Service Demandeur","Nom du responsable","Date de la demande","Numéro de la tranche","Nom du projet","Manager du Projet","Date prévisionnelle de MES","Date prévisionnelle de fin","Montant en K€","Catégorie","Priorité","Type","DESCRIPTION DETAILLEE","BESOINS EXPRIMES : ","IMPACT DE LA NON REALISATION","H1","H2","H1","H2","taux d'actualisation retenu","MONTANT INVESTISSEMENT ","Montant retenu","Revenu attendu durant année 1 (à détailler en Feuil 2)","Revenu attendu durant annee 2 (à détailler en Feuil 2)","Revenu attendu durant année3 (à détailler en Feuil 2)","Revenu attendu durant année 4 (à détailler en Feuil 2)","Revenu attendu durant année 5 (à détailler en Feuil 2)","Valeur Actuelle Nette (VAN)","Taux de rentabilite Interne apres 3 ans","Taux de rentabilite Interne apres 4 ans","Taux de rentabilite Interne apres 5 ans","Durée amortissement comptable","Durée vie utile","oui/non","Date de validation ","commentaire"]
[{"$f":"C3&G3&O3&D3&B3","v":"C152NDRH01"},"01","C15","DRH","PHILIPPE",null,2,null,null,null,null,35,"E","H","N",null,null,null,null,null,null,null,null,null,null,null,null,null,null,null,null,null,null,null,null,null,"oui"]
[{"$f":"C4&G4&O4&D4&B4","v":"C152SDRH02"},"02","C15","DRH","PHILIPPE",null,2,null,null,null,null,78,"E","M","S",null,null,null,null,null,null,null,null,null,null,null,null,null,null,null,null,null,null,null,null,null,"oui"]
["C151NDRH03","03","C15","DRH","PHILIPPE",null,1,null,null,null,null,15,"E","H","N",null,null,null,null,null,null,null,null,null,null,null,null,null,null,null,null,null,null,null,null,null,"oui"]
[{"$f":"C6&G6&O6&D6&B6","v":"C171NCIAL01"},"01","C17","CIAL","ALAIN","2015-05-01",1,null,null,"2015-07-05","2016-04-06",11,"","","N",null,null,null,0,0,0,0,null,null,null,null,null,null,null,null,null,null,null,null,null,null,"non"]
["C152NDAF01","01","C15","DAF","HENRI",null,2,null,null,null,null,18,"E","H","N",null,null,null,null,null,null,null,null,null,null,null,null,null,null,null,null,null,null,null,null,null,"oui"]
["C152NDAF02","02","C15","DAF","HENRI",null,2,null,null,null,null,13,"E","H","N",null,null,null,null,null,null,null,null,null,null,null,null,null,null,null,null,null,null,null,null,null,"non"]
[{"$f":"C9&G9&O9&D9&B9","v":"C161NDAF03"},"03","C16","DAF","HENRI",null,1,"test30-06","test30-06","2015-06-30",null,15,"E","H","N","test30-06","test30-06","test30-06",0,0,1,1,null,null,null,null,null,null,null,null,null,null,null,null,null,null,"non"]
["C152SQUA01","01","C15","QUA","QUENTIN",null,2,null,null,null,null,58,"E","M","S",null,null,null,null,null,null,null,null,null,null,null,null,null,null,null,null,null,null,null,null,null,"oui"]
["C152NQUA02","02","C15","QUA","QUENTIN",null,2,null,null,null,null,17,"E","H","N",null,null,null,null,null,null,null,null,null,null,null,null,null,null,null,null,null,null,null,null,null,"oui"]
["C152NQUA03","03","C15","QUA","QUENTIN",null,2,null,null,null,null,180,"E","M","N",null,null,null,null,null,null,null,null,null,null,null,null,null,null,null,null,null,null,null,null,null,"non"]
["C152NSCH01","01","C15","SCH","MARTIN",null,2,null,null,null,null,5,"E","H","N",null,null,null,null,null,null,null,null,null,null,null,null,null,null,null,null,null,null,null,null,null,"oui"]
[{"$f":"C14&G14&O14&D14&B14","v":"C161NDAF04"},"04","C16","DAF","HENRI",null,1,null,null,null,null,0,"","","N",null,null,null,0,0,0,0,null,null,null,null,null,null,null,null,null,null,null,null,null,null,"non"]
[{"$f":"C15&G15&O15&D15&B15","v":"C161SDAF05"},"05","C16","DAF","HENRI","2015-06-30",1,null,null,null,null,200,"E","M","S",null,null,null,0,1,0,0,null,null,null,null,null,null,null,null,null,null,null,null,null,null,"non"]

{"sheet":"Demande invest.","index":3,"n_rows":9,"n_cols":18,"rows_kept":9,"cut":false,"hidden":false,"merged":[[0,14,0,17]]}
[null,null,null,null,null,null,null,null,null,null,null,null,null,null,"Validation des besoins"]
["Référence","Numéro nomenclature","Coût prévisionnel ","Durée d'amort.","Durée de vie utile","Date de commande","Date MES estimée","Nombre d'H","Montant H en k€ (a)","Conso Matières CM","Montant CM (b)","Total dépenses Internes c = (a+b)","Total Coût prévisionnel d","Total Coût en k€ d+c","oui/non","Date de validation ","commentaire","Numéro d'ordre"]
["C152NDRH01","01",null,null,null,null,null,null,null,null,null,null,null,null,null,null,null,3000]
["C152NDRH01","02",null,null,null,null,null,null,null,null,null,null,null,null,null,null,null,3000]
["C152NDRH01","03",null,null,null,null,null,null,null,null,null,null,null,null,null,null,null,3000]
["C152NDRH01","04",null,null,null,null,null,null,null,null,null,null,null,null,null,null,null,3000]
["C152NDRH01","05",null,null,null,null,null,null,null,null,null,null,null,null,null,null,null,3000]
["C152SDRH02","01",null,null,null,null,null,null,null,null,null,null,null,null,null,null,null,3001]
["C152SDRH02","02",null,null,null,null,null,null,null,null,null,null,null,null,null,null,null,3001]

{"sheet":"Demandes Achats","index":4,"n_rows":16,"n_cols":15,"rows_kept":16,"cut":false,"hidden":false,"merged":[[0,8,0,11],[0,12,0,14]]}
["Données calculées ",null,null,null,null,null,null,null,"Coût interne",null,null,null,"Validation demandes"]
["Référence Demande de credit ","Référence Achat ","Numéro d'ordre","Libellé","Frs","OA","Montant de la commande","Date demande","Heures","Montant H","Coût Matière stock","Montant CM","oui/non","Date de validation ","commentaire"]
["C152NDRH01",{"$f":"A3&C3","v":"C152NDRH01"}]
["C152NDRH01",{"$f":"A4&C4","v":"C152NDRH01"}]
["C152NDRH01",{"$f":"A5&C5","v":"C152NDRH01"}]
["C152SDRH02",{"$f":"A6&C6","v":"C152SDRH02"}]
["C152NDRH03",{"$f":"A7&C7","v":"C152NDRH03"}]
[null,{"$f":"A8&C8","v":""}]
[null,{"$f":"A9&C9","v":""}]
[null,{"$f":"A10&C10","v":""}]
[null,{"$f":"A11&C11","v":""}]
[null,{"$f":"A12&C12","v":""}]
[null,{"$f":"A13&C13","v":""}]
[null,{"$f":"A14&C14","v":""}]
[null,{"$f":"A15&C15","v":""}]
[null,{"$f":"A16&C16","v":""}]

{"sheet":"détail projet application","index":5,"n_rows":54,"n_cols":2,"rows_kept":54,"cut":false,"hidden":false,"merged":[[3,0,3,1],[17,0,17,1]]}
[]
[]
[]
["La 1ère étape "]
[null,"recenser les besoins : chaque service rempli un formulaire papier des"]
[null," besoins d'investissement pour l'année  "]
[null,"j'ai reproduis le formulaire papier en formulaire sur Excel ==>"]
["un service peut faire plusieurs demandes en fonction du nombre de projet "]
["une fois les demandes sont faites je les regroupe dans un fichier Excel "]
["le formulaire Excel va donc me permettre de stocker toutes les demandes "]
["directement dans la feuille \"Base recensement\" une ligne doit corresponde à une demande"]
["j'ai ensuite penser à créer une référence unique par demande en fonction des éléments "]
["préalablement saisie  dans la demande (voir formule référence)"]
["ex ","C152SDRH02"]
[]
[]
[]
["La 2ème étape "]
[]
["une fois les demandes sont recensées elles sont soumises à une 1ère validation"]
["certaines vont êtres acceptées et d'autres refusées "]
["pour valider les demandes j'ai imaginé un 2ème formulaire ==>"]
[]
["la personne qui valide doit sélectionnée la référence (liste déroulante "]
["en lien avec la référence dans \"Base recensement\""]
["le choix de la référence devrait faire apparaitre tous les renseignements "]
["relatifs à la demande"]
["le valideur alors accepte ou refuse la demande et peut également mettre un commentaire "]
["le bouton valider doit permettre d'alimenter la décision sur "]
[" \"Base recensement\" dans la ligne de la demande "]
[]
["une référence est relié à un budget "]
[]
[]
[]
[]
[]
["la suite de notre traitement va donc concernée uniquement les demandes acceptées "]
[]
["Au fur et à mesure de l'avancement des projets acceptés des demandes d'achat sont nécessaires "]
["une référence par exemple  C152SDRH02 peut faire l'objet de plusieurs ordres d'achat "]
[]
["pour faire une demande la personne doit renseigner le formulaire demande d'achat==>"]
["les données saisies alimenteront \"Demandes Achats\""]
["le premier encadré concerne la partie à saisir par contre les encadrés suivants "]
["doivent être alimenté en fonction du numéro de la référence pour rappeler les informations  financières du service "]
["ce qui est déjà consommés et ce qui reste à consommer"]
["à savoir que pour le même numéro d'ordre il peut y avoir plusieurs achats partiels "]
[]
["L'objectif est évidemment de ne pas dépasser les budgets alloués "]
[]
[]
[]
["La validation d'achat idem que la validation des besoins"]

{"sheet":"liens entre les formulaires","index":6,"n_rows":44,"n_cols":12,"rows_kept":44,"cut":false,"hidden":false,"merged":[]}
[]
[]
[null,"Base recensement",null,null,null,null,"Demande invest.",null,null,null,null,"Demande Achat"]
[null,null,null,null,"Références acceptées"]
[null,"Référence",null,null,null,null,"Référence",null,null,null,null,"Référence"]
[null,"…",null,null,null,null,"Numéro nomenclature",null,"crée au moment de la création de la demande",null,null,"N ordre"]
[null,null,null,null,null,null,null,null,null,null,null,"Numéro nomenclature"]
[]
[]
[]
[]
[null,null,null,null,null,null,"N ordre","crée au moment de la validation "]
[]
[]
[null,null,null,null,null,null,"Une référence  correspond à un N ordre "]
[]
[]
[null,null,"Exemple"]
[]
["Base recensement",null,"Besoin d'investieement d'une machine montant d'investissement estimé :50k€",null,null,null,null,null,"Réf: C152NDRH01"]
["1ère validation ",null,"accord de principe"]
[null,null,null,null,null,null,null,null," "]
["Demande invest.",null,"Estimation du coût  prévisionnel de tous les frais en rapport avec l'achat de la machine "]
[]
[null,null,"Numéro de Nomenc.","Libellé","coût prévisionnel"]
[null,null,"01","coût achat machine","48k€"]
[null,null,"02","cout  instal","4k€"]
[null,null,"03","transport","1k€"]
[null,null,null,"Total","53k€"]
["2ème validation",null,"accord ","la demade de validation est nécéssaire car l'estimation détaillée du projet d'investissement  peut être plus ou moins égale  au cout global initialement validé"]
["si la demande d'investissement est accepté un numéro d'ordre est attribué  Ex 3000"]
[]
[]
["Demande d'achat ",null,"c'est le stade où les achat se font réellement"]
[]
[null,null,null,"Numéro de Nomenc.","Libellé","coût prévisionnel","Montant d'achat"]
[null,null,3000,"01","coût achat machine","48k€","49k€","+1k€"]
[null,null,3000,"02","cout  instal","4k€","4k€",0]
[null,null,3000,"03","transport","1k€","0,8k€","-0,2k€"]
[null,null,null,null,"Total","53k€","49,8k€"]
[]
[null,null,null,null,"reste à dépenser ",null,{"$f":"53-49.8","v":3.2000000000000028}]
[null,null,null,null,"coût previs.",null,"4k€"]
["Validation",null,null,null,"Dépassement ",null,"0,8k€"]